bitfinex-derivatives/quotes_BTCF0:USTF0_20240903
["timestamp","ask_amount","ask_price","bid_price","bid_amount"]
[1725367042968,0.30124747,59380.0,59379.0,0.56468576]
[1725367043366,0.25124747,59380.0,59379.0,0.56468576]
[1725367044258,0.30124747,59380.0,59379.0,0.56468576]
[1725367046367,0.25124747,59380.0,59379.0,0.56468576]
[1725367046972,0.30124747,59380.0,59379.0,0.56468576]
[1725367047166,0.25124747,59380.0,59379.0,0.56468576]
[1725367047370,0.30124747,59380.0,59379.0,0.56468576]
[1725367048673,0.43124747,59380.0,59379.0,0.56468576]
[1725367052775,0.38124747,59380.0,59379.0,0.56468576]
[1725367053376,0.15124747,59380.0,59379.0,0.56468576]
[1725367053682,0.3608,59392.0,59379.0,0.56468576]
[1725367053683,0.16563424,59403.0,59385.0,0.0842]
[1725367053977,0.0039,59414.0,59402.0,0.3608]
[1725367053978,0.00858322,59414.0,59402.0,0.3608]
[1725367054176,0.23,59403.0,59402.0,0.3608]
[1725367054480,0.38,59403.0,59395.0,0.3608]
[1725367054776,0.15,59403.0,59401.0,0.33140576]
[1725367054984,0.23,59402.0,59401.0,0.33140576]
[1725367055183,0.44,59402.0,59401.0,0.33140576]
[1725367055877,0.33,59402.0,59401.0,0.33140576]
[1725367056082,0.44,59402.0,59401.0,0.33140576]
[1725367056275,0.44,59402.0,59401.0,0.33340576]
[1725367057286,0.45523902,59402.0,59401.0,0.33340576]
[1725367057478,0.45523902,59402.0,59401.0,0.002]
[1725367061281,0.45523902,59402.0,59401.0,0.0028]
[1725367062681,0.22523902,59402.0,59401.0,0.0028]
[1725367062883,0.45523902,59402.0,59401.0,0.0028]
[1725367063182,0.45523902,59402.0,59394.0,0.00025265]
[1725367063383,0.23,59396.0,59394.0,0.00025265]
[1725367063685,0.7287,59395.0,59386.0,0.00546]
[1725367063886,0.7287,59395.0,59381.0,0.3563]
[1725367063887,0.5908,59387.0,59377.0,0.3647]
[1725367064086,0.3608,59381.0,59379.0,0.09804029]
[1725367064390,0.23,59380.0,59369.0,0.00164]
[1725367064577,0.3608,59376.0,59362.0,0.0039]
[1725367064778,0.23,59363.0,59360.0,0.08804029]
[1725367064979,0.23,59361.0,59360.0,0.08804029]
[1725367066188,0.00025265,59366.0,59360.0,0.31904029]
[1725367066395,0.00025265,59366.0,59365.0,0.08804029]
[1725367066687,0.00025265,59366.0,59365.0,0.17226829]
[1725367067078,0.00025265,59366.0,59365.0,0.53806829]
[1725367067891,0.00225265,59366.0,59365.0,0.53906829]
[1725367068778,0.01525265,59366.0,59365.0,1.14006829]
[1725367069387,0.15721236,59376.0,59374.0,0.084215]
[1725367069582,0.15721236,59376.0,59375.0,0.802414]
[1725367069890,0.15721236,59376.0,59375.0,0.803214]
[1725367070692,0.17121236,59376.0,59375.0,0.719]
[1725367070897,0.17121236,59376.0,59375.0,0.3616]
[1725367072096,0.18644623,59376.0,59375.0,0.3616]
[1725367072596,0.18644623,59376.0,59375.0,0.3626]
[1725367072991,0.18644623,59376.0,59375.0,0.603]
[1725367073393,0.18344623,59376.0,59375.0,0.603]
[1725367073594,0.18344623,59376.0,59375.0,0.604]
[1725367074493,0.02623387,59376.0,59375.0,1.279014]
[1725367074695,0.011,59376.0,59375.0,2.384254]
[1725367075103,0.011,59376.0,59375.0,2.383254]
[1725367075292,0.011,59376.0,59375.0,2.384254]
[1725367075989,0.01580555,59381.0,59380.0,0.084207]
[1725367076191,0.23858415,59386.0,59383.0,0.084202]
[1725367076390,0.28,59386.0,59385.0,0.0004]
[1725367076590,0.28,59386.0,59384.0,0.829101]
[1725367076591,0.28,59386.0,59384.0,0.830101]
[1725367076796,0.28,59386.0,59385.0,0.3731]
[1725367077099,0.28,59386.0,59385.0,0.4573]
[1725367077502,0.062,59386.0,59385.0,0.4573]
[1725367077802,0.012,59386.0,59385.0,0.8181]
[1725367078393,0.02780245,59386.0,59385.0,0.8181]
[1725367078790,0.02780245,59386.0,59385.0,1.0585]
[1725367078990,0.25780245,59386.0,59385.0,1.0585]
[1725367079500,0.25780245,59386.0,59385.0,1.0595]
[1725367079900,0.25780245,59386.0,59385.0,1.0605]
[1725367081095,0.25780245,59386.0,59385.0,0.6032]
[1725367082193,0.25780245,59386.0,59385.0,0.2424]
[1725367082588,0.30780245,59386.0,59385.0,0.2424]
[1725367083998,0.30780245,59386.0,59385.0,0.002]
[1725367084202,1.61296245,59386.0,59380.0,0.0004]
[1725367084399,0.314606,59381.0,59380.0,0.0004]
[1725367084605,0.23,59377.0,59376.0,0.16494638]
[1725367084802,0.424611,59377.0,59376.0,0.16494638]
[1725367085006,0.929851,59377.0,59376.0,0.16494638]
[1725367085307,0.084217,59374.0,59370.0,0.00025265]
[1725367085503,0.2304,59371.0,59370.0,0.00025265]
[1725367085704,0.3504,59371.0,59370.0,0.00025265]
[1725367086494,1.53994,59371.0,59370.0,0.00025265]
[1725367087214,1.53994,59371.0,59357.0,0.16494638]
[1725367087215,0.084222,59370.0,59357.0,0.16494638]
[1725367087404,0.445023,59369.0,59358.0,0.16494638]
[1725367087710,0.8273,59369.0,59358.0,0.16494638]
[1725367087909,0.084226,59367.0,59358.0,0.16494638]
[1725367088096,0.094226,59367.0,59358.0,0.16494638]
[1725367088498,0.23,59359.0,59358.0,0.16494638]
[1725367089201,0.23,59359.0,59358.0,0.16594638]
[1725367090208,0.23,59366.0,59365.0,0.084228]
[1725367090409,0.00025265,59368.0,59367.0,0.084226]
[1725367090602,0.00025265,59368.0,59367.0,0.084626]
[1725367090797,0.00025265,59368.0,59367.0,0.24917238]
[1725367091602,0.23025265,59368.0,59367.0,0.24917238]
[1725367093312,0.24525265,59368.0,59367.0,0.62637238]
[1725367094110,0.01525265,59368.0,59367.0,1.73169238]
[1725367094322,0.01525265,59368.0,59367.0,1.96169238]
[1725367095125,0.01525265,59368.0,59367.0,1.73169238]
[1725367095416,0.01425265,59368.0,59367.0,0.62537238]
[1725367095620,0.01525265,59368.0,59367.0,0.62637238]
[1725367096311,0.00125265,59368.0,59367.0,0.62537238]
[1725367096515,0.01425265,59368.0,59367.0,0.62537238]
[1725367096812,0.01525265,59368.0,59367.0,0.62637238]
[1725367097218,0.01525265,59368.0,59367.0,0.98717238]
[1725367098220,0.01425265,59368.0,59367.0,0.98617238]
[1725367098425,0.01525265,59368.0,59367.0,0.98717238]
[1725367099026,0.01525265,59368.0,59367.0,0.52774638]
[1725367099530,0.25525265,59368.0,59367.0,0.16694638]
[1725367099733,1.44479665,59368.0,59367.0,0.16694638]
[1725367100039,1.44479665,59368.0,59365.0,0.0004]
[1725367100040,1.04547665,59368.0,59365.0,0.0004]
[1725367100226,0.5912,59366.0,59365.0,0.0004]
[1725367100427,0.7012,59366.0,59365.0,0.0004]
[1725367100621,1.290787,59366.0,59365.0,0.0004]
[1725367102633,1.290787,59366.0,59358.0,0.0039]
[1725367102634,1.82656,59366.0,59358.0,0.0039]
[1725367102835,0.2304,59359.0,59357.0,0.00025265]
[1725367103029,0.0004,59358.0,59357.0,0.00025265]
[1725367103231,0.07,59358.0,59357.0,0.00025265]
[1725367104631,0.084,59358.0,59357.0,0.00125265]
[1725367105725,0.086,59358.0,59357.0,0.00225265]
[1725367106333,0.072,59358.0,59357.0,0.00125265]
[1725367106638,0.086,59358.0,59357.0,0.00225265]
[1725367107637,0.087,59358.0,59357.0,0.00225265]
[1725367108836,0.10269853,59358.0,59357.0,0.00225265]
[1725367112541,0.03269853,59358.0,59357.0,0.00225265]
[1725367113137,0.03269853,59358.0,59357.0,0.08649265]
[1725367114448,0.017,59358.0,59357.0,0.08649265]
[1725367114649,0.017,59358.0,59357.0,0.95689265]
[1725367115043,0.017,59358.0,59357.0,1.04113265]
[1725367115341,0.017,59358.0,59357.0,2.14653265]
[1725367121648,0.247,59358.0,59357.0,0.95689265]
[1725367123044,0.247,59358.0,59357.0,0.87265265]
[1725367123641,0.25939985,59358.0,59357.0,0.87265265]
[1725367124259,0.02939985,59358.0,59357.0,0.87265265]
[1725367124845,0.02939985,59358.0,59357.0,0.95689265]
[1725367125354,0.02939985,59358.0,59357.0,1.31769265]
[1725367126557,0.02939985,59358.0,59357.0,0.44729265]
[1725367134467,0.25939985,59358.0,59357.0,0.44729265]
[1725367134761,0.25939985,59358.0,59357.0,0.36305265]
[1725367134950,0.30939985,59358.0,59357.0,0.00225265]
[1725367135357,0.39363785,59358.0,59357.0,0.00225265]
[1725367135556,0.89903785,59358.0,59357.0,0.00225265]
[1725367135758,1.01363785,59358.0,59345.0,0.3608]
[1725367136057,0.2304,59350.0,59345.0,0.3647]
[1725367136262,0.2304,59350.0,59345.0,0.3608]
[1725367136263,0.2304,59346.0,59345.0,0.3608]
[1725367136857,0.2804,59346.0,59345.0,0.3608]
[1725367137751,0.2944,59346.0,59345.0,0.3618]
[1725367138157,0.2974,59346.0,59345.0,0.3628]
[1725367141364,0.31005906,59346.0,59345.0,0.3628]
[1725367141566,0.81557906,59346.0,59345.0,0.3628]
[1725367141765,0.81557906,59346.0,59335.0,0.00088]
[1725367141766,0.31005906,59346.0,59335.0,0.00088]
[1725367141975,0.5912,59336.0,59332.0,0.86755265]
[1725367142272,0.5912,59336.0,59325.0,0.3608]
[1725367142273,0.23,59333.0,59325.0,0.3608]
[1725367142578,0.2304,59326.0,59323.0,0.3608]
[1725367142867,0.2304,59324.0,59323.0,0.3608]
[1725367143466,0.2304,59324.0,59319.0,0.80003814]
[1725367143663,0.23,59320.0,59319.0,0.79915814]
[1725367143874,0.2304,59320.0,59319.0,0.79915814]
[1725367144476,0.2304,59320.0,59319.0,0.79911814]
[1725367144975,0.2304,59320.0,59319.0,0.00525265]
[1725367145169,0.2304,59320.0,59319.0,0.00625265]
[1725367145567,1.33612,59320.0,59319.0,0.00625265]
[1725367146368,0.0004,59320.0,59319.0,0.00625265]
[1725367146672,0.0004,59320.0,59319.0,0.36705265]
[1725367146974,0.0004,59320.0,59319.0,0.68134665]
[1725367147189,0.0004,59320.0,59319.0,0.80974665]
[1725367147868,0.0014,59320.0,59319.0,0.80874665]
[1725367148470,0.0014,59320.0,59319.0,0.72445265]
[1725367149868,0.0014,59320.0,59319.0,0.36405265]
[1725367150074,0.0014,59320.0,59319.0,0.00325265]
[1725367151680,0.0014,59320.0,59319.0,0.08754665]
[1725367152875,0.0014,59320.0,59319.0,0.44834665]
[1725367156275,0.0014,59320.0,59319.0,1.24721214]
[1725367157187,0.0014,59320.0,59319.0,1.56150614]
[1725367157488,0.01264072,59327.0,59323.0,0.084288]
[1725367157687,0.00025265,59330.0,59323.0,0.084288]
[1725367157688,0.00025265,59330.0,59329.0,0.08428]
[1725367157885,0.23025265,59330.0,59329.0,0.08428]
[1725367158688,0.24302359,59330.0,59329.0,0.08428]
[1725367159076,0.25602359,59330.0,59329.0,0.08428]
[1725367160679,0.26402359,59330.0,59329.0,0.08528]
[1725367165986,0.26402359,59330.0,59329.0,0.44608]
[1725367167987,0.30402359,59330.0,59329.0,0.3618]
[1725367168397,0.43402359,59330.0,59329.0,0.3618]
[1725367168894,0.51830159,59330.0,59329.0,0.001]
[1725367169087,0.56830159,59330.0,59329.0,0.001]
[1725367169284,0.56830159,59330.0,59320.0,0.79886549]
[1725367169496,0.23,59321.0,59320.0,0.79886549]
[1725367169692,0.33,59321.0,59320.0,0.79886549]
[1725367170487,0.33,59321.0,59320.0,0.80086549]
[1725367171087,0.332,59321.0,59320.0,0.80086549]
[1725367171293,0.102,59321.0,59320.0,0.79886549]
[1725367171497,0.332,59321.0,59320.0,0.80086549]
[1725367174187,0.332,59321.0,59320.0,0.002]
[1725367174399,0.34446304,59321.0,59320.0,0.002]
[1725367175786,0.69836304,59321.0,59320.0,0.002]
[1725367176901,0.80836304,59321.0,59320.0,0.002]
[1725367177102,1.56018304,59321.0,59320.0,0.002]
[1725367177303,1.31408304,59321.0,59320.0,0.002]
[1725367177595,0.80836304,59321.0,59320.0,0.002]
[1725367177996,0.45446304,59321.0,59320.0,0.002]
[1725367185410,0.45446304,59321.0,59320.0,0.086292]
[1725367185616,0.45446304,59321.0,59320.0,0.810092]
[1725367186211,0.35446304,59321.0,59320.0,0.810092]
[1725367186410,0.01446304,59321.0,59320.0,0.810092]
[1725367186607,0.002,59321.0,59320.0,0.894384]
[1725367187114,0.002,59321.0,59320.0,0.810092]
[1725367192005,0.002,59321.0,59320.0,1.60895749]
[1725367195016,0.002,59321.0,59320.0,1.98315749]
[1725367200323,0.052,59321.0,59320.0,1.98315749]
[1725367200623,0.002,59321.0,59320.0,1.98315749]
[1725367203922,0.002,59321.0,59320.0,1.184292]
[1725367208733,0.002,59321.0,59320.0,1.545092]
[1725367209229,0.0016,59321.0,59320.0,1.629384]
[1725367209924,0.0016,59321.0,59320.0,2.42824949]
[1725367212934,0.2316,59321.0,59320.0,2.34395749]
[1725367214425,0.244,59321.0,59320.0,2.34395749]
[1725367214626,0.244,59321.0,59320.0,1.61965749]
[1725367215518,0.257,59321.0,59320.0,1.61865749]
[1725367216233,0.244,59321.0,59320.0,1.61765749]
[1725367216431,0.258,59321.0,59320.0,1.61865749]
[1725367218027,0.378,59321.0,59320.0,1.16066549]
[1725367220137,0.258,59321.0,59320.0,1.24495749]
[1725367220329,0.258,59321.0,59320.0,1.60905749]
[1725367223128,0.258,59321.0,59320.0,1.24825749]
[1725367223329,0.258,59321.0,59320.0,1.60905749]
[1725367224428,0.258,59321.0,59320.0,1.24495749]
[1725367224734,0.258,59321.0,59320.0,1.16066549]
[1725367224935,0.368,59321.0,59320.0,1.16066549]
[1725367227025,0.368,59321.0,59320.0,1.24495749]
[1725367227227,0.258,59321.0,59320.0,1.24495749]
[1725367230941,0.2584,59321.0,59320.0,0.88415749]
[1725367231232,0.2584,59321.0,59320.0,1.24495749]
[1725367231935,0.2584,59321.0,59320.0,0.88415749]
[1725367232142,0.2584,59321.0,59320.0,1.24495749]
[1725367232334,0.2584,59321.0,59320.0,0.88415749]
[1725367232529,0.2584,59321.0,59320.0,1.24495749]
[1725367238045,0.2584,59321.0,59320.0,1.59675749]
[1725367240852,0.0284,59321.0,59320.0,1.59675749]
[1725367244247,0.0284,59321.0,59320.0,1.91104949]
[1725367244458,0.0284,59321.0,59320.0,3.10106149]
[1725367244650,0.00025265,59330.0,59329.0,0.16856]
[1725367244852,0.01255782,59330.0,59329.0,1.2654]
[1725367245053,0.00025265,59330.0,59329.0,1.2654]
[1725367245241,0.00025265,59330.0,59329.0,1.8654]
[1725367246150,0.00025265,59330.0,59329.0,0.44548]
[1725367246151,0.24299098,59330.0,59329.0,0.44548]
[1725367246342,0.24425265,59330.0,59329.0,0.44648]
[1725367247755,0.23825265,59330.0,59329.0,0.44648]
[1725367248056,0.23825265,59330.0,59329.0,0.44748]
[1725367248941,0.23825265,59330.0,59329.0,0.3632]
[1725367249149,0.32253065,59330.0,59329.0,0.3632]
[1725367249350,0.23825265,59330.0,59329.0,0.0024]
[1725367249554,0.85989265,59330.0,59329.0,0.0024]
[1725367250152,0.96989265,59330.0,59329.0,0.0024]
[1725367250555,1.66686673,59330.0,59329.0,0.0024]
[1725367251152,1.67886673,59330.0,59329.0,0.00216001]
[1725367251658,1.66686673,59330.0,59329.0,0.00116001]
[1725367251861,1.67886673,59330.0,59329.0,0.00216001]
[1725367252253,1.67886673,59330.0,59329.0,0.002]
[1725367253152,2.03966673,59330.0,59329.0,0.002]
[1725367255360,0.084291,59321.0,59320.0,0.80276549]
[1725367255555,0.574691,59321.0,59320.0,0.79886549]
[1725367256755,0.574691,59321.0,59320.0,0.79986549]
[1725367256756,0.578691,59321.0,59320.0,0.79986549]
[1725367258354,0.592691,59321.0,59320.0,0.80086549]
[1725367258752,0.60505117,59321.0,59320.0,0.80086549]
[1725367260457,0.60505117,59321.0,59320.0,0.002]
[1725367261357,0.084298,59316.0,59311.0,0.0039]
[1725367261663,0.084298,59316.0,59309.0,0.79974549]
[1725367261664,0.2304,59312.0,59309.0,0.79974549]
[1725367261957,0.0004,59310.0,59309.0,0.79886549]
[1725367262458,0.2304,59310.0,59309.0,0.79886549]
[1725367262661,1.38624,59310.0,59304.0,0.36105286]
[1725367262964,0.0004,59305.0,59304.0,0.36105286]
[1725367263166,0.2304,59305.0,59304.0,0.36105286]
[1725367263952,0.6412,59305.0,59298.0,0.0039]
[1725367264155,0.2304,59299.0,59294.0,0.3564]
[1725367264366,0.2304,59295.0,59294.0,0.3564]
[1725367264566,0.23,59295.0,59294.0,0.35636]
[1725367265460,0.228,59295.0,59294.0,0.31409]
[1725367265860,0.001,59295.0,59294.0,0.32409]
[1725367266058,0.231,59295.0,59294.0,0.32409]
[1725367266563,0.232,59295.0,59294.0,0.33709]
[1725367267261,0.24429256,59295.0,59294.0,0.33709]
[1725367272766,0.24429256,59295.0,59294.0,0.023]
[1725367273363,0.25429256,59295.0,59294.0,0.023]
[1725367273667,0.36429256,59295.0,59294.0,0.023]
[1725367274067,0.35429256,59295.0,59294.0,0.023]
[1725367275967,0.35429256,59295.0,59294.0,0.107329]
[1725367277080,0.35429256,59295.0,59294.0,0.023]
[1725367277263,0.36429256,59295.0,59294.0,0.013]
[1725367277573,0.87025256,59295.0,59294.0,0.013]
[1725367277874,0.87856482,59295.0,59294.0,0.013]
[1725367278069,0.37260482,59295.0,59294.0,0.013]
[1725367279067,0.37560482,59295.0,59294.0,0.013]
[1725367279462,0.37460482,59295.0,59289.0,0.75495286]
[1725367279677,0.2304,59290.0,59289.0,0.75495286]
[1725367279977,0.3504,59290.0,59289.0,0.75495286]
[1725367280672,0.3504,59290.0,59289.0,0.76095286]
[1725367282480,0.3604,59290.0,59289.0,0.75495286]
[1725367282684,0.3604,59290.0,59289.0,0.76095286]
[1725367282977,0.4704,59290.0,59289.0,0.00625286]
[1725367283882,0.3504,59290.0,59289.0,0.00625286]
[1725367284388,0.3604,59290.0,59289.0,0.00625286]
[1725367288991,0.3504,59290.0,59289.0,0.00625286]
[1725367291288,0.4004,59290.0,59289.0,0.00625286]
[1725367291886,0.1704,59290.0,59289.0,0.00625286]
[1725367292192,0.2604,59290.0,59289.0,0.00625286]
[1725367298685,0.2674,59290.0,59289.0,0.00625286]
[1725367299088,0.2674,59290.0,59283.0,0.0039]
[1725367299284,0.0904,59284.0,59279.0,1.04818]
[1725367299487,0.0004,59281.0,59279.0,1.13253]
[1725367299687,0.09,59282.0,59279.0,1.13253]
[1725367299887,0.1,59282.0,59281.0,0.0004]
[1725367301391,0.091,59282.0,59281.0,0.0074]
[1725367302491,0.091,59282.0,59281.0,0.0084]
[1725367303580,0.141,59282.0,59281.0,0.0084]
[1725367303985,0.091,59282.0,59281.0,0.0084]
[1725367304493,0.10378603,59282.0,59281.0,0.0084]
[1725367306693,0.15378603,59282.0,59213.0,0.08441]
[1725367306995,0.15378603,59282.0,59269.0,0.385]
[1725367306996,0.3608,59271.0,59269.0,0.385]
[1725367307293,0.7216,59271.0,59270.0,0.3789]
[1725367308300,0.8116,59271.0,59270.0,0.3789]
[1725367308590,0.81178188,59271.0,59270.0,0.3789]
[1725367308791,0.92173906,59271.0,59270.0,0.3789]
[1725367308986,0.92173697,59271.0,59255.0,0.09]
[1725367309193,0.09,59259.0,59258.0,0.385]
[1725367309391,0.3608,59259.0,59258.0,0.475]
[1725367309596,0.3608,59259.0,59258.0,1.58124]
[1725367309993,0.3578,59259.0,59258.0,1.49124]
[1725367310591,0.3578,59259.0,59258.0,0.89124]
[1725367310791,0.3598,59259.0,59258.0,1.49624]
[1725367311091,0.3628,59259.0,59258.0,0.89624]
[1725367311996,0.3628,59259.0,59258.0,1.85984]
[1725367312391,0.447179,59259.0,59258.0,1.25984]
[1725367314990,0.447179,59259.0,59258.0,1.85984]
[1725367315497,0.447179,59259.0,59258.0,1.25984]
[1725367315692,0.447179,59259.0,59258.0,1.85984]
[1725367316394,0.447179,59259.0,59258.0,1.25984]
[1725367316595,0.447179,59259.0,59258.0,1.87215989]
[1725367316800,0.44730434,59259.0,59258.0,1.27215989]
[1725367316998,0.44730666,59259.0,59258.0,1.87215989]
[1725367317198,0.44732134,59259.0,59258.0,1.87215989]
[1725367317508,0.447179,59259.0,59258.0,1.87215989]
[1725367318005,0.002,59259.0,59258.0,2.40172189]
[1725367321108,0.00218188,59259.0,59258.0,2.40172189]
[1725367321300,0.002,59259.0,59258.0,2.40172189]
[1725367323307,0.002,59259.0,59258.0,1.95654089]
[1725367325316,0.002,59259.0,59258.0,2.18654089]
[1725367330810,0.002,59259.0,59258.0,2.27092189]
[1725367331005,0.002,59259.0,59258.0,2.63172189]
[1725367331205,0.002,59259.0,59258.0,2.71610289]
[1725367331412,0.002,59259.0,59258.0,2.63172189]
[1725367331606,0.002,59259.0,59258.0,2.68202121]
[1725367332608,0.002,59259.0,59258.0,2.54202121]
[1725367333108,0.002,59259.0,59258.0,2.49172189]
[1725367333305,0.002,59259.0,59258.0,1.71734089]
[1725367333505,0.002,59259.0,59258.0,2.40734089]
[1725367334607,0.00218188,59259.0,59258.0,2.40734089]
[1725367334916,0.002,59259.0,59258.0,2.40734089]
[1725367336511,0.002,59259.0,59258.0,2.13092189]
[1725367336815,0.002,59259.0,59258.0,2.27092189]
[1725367337015,0.002,59259.0,59258.0,2.35530289]
[1725367337209,0.002,59259.0,59258.0,2.27092189]
[1725367340112,0.002,59259.0,59258.0,1.67092189]
[1725367340311,0.002,59259.0,59258.0,1.22294089]
[1725367340613,0.002,59259.0,59258.0,1.82294089]
[1725367341516,0.002,59259.0,59258.0,1.22294089]
[1725367341722,0.002,59259.0,59258.0,1.82294089]
[1725367344114,0.002,59259.0,59258.0,2.18374089]
[1725367344314,0.00218188,59259.0,59258.0,1.19874089]
[1725367344516,0.002,59259.0,59258.0,1.79874089]
[1725367344920,0.00218188,59259.0,59258.0,1.79874089]
[1725367345221,0.002,59259.0,59258.0,1.79874089]
[1725367345914,0.00211962,59259.0,59258.0,1.79874089]
[1725367346111,0.002,59259.0,59258.0,1.79874089]
[1725367349637,0.0021218,59259.0,59258.0,1.79874089]
[1725367349830,0.002,59259.0,59258.0,1.79874089]
[1725367351727,0.002,59259.0,59258.0,1.88312189]
[1725367353331,0.002,59259.0,59258.0,1.28312189]
[1725367353530,0.002,59259.0,59258.0,1.88312189]
[1725367354228,0.002,59259.0,59258.0,1.28312189]
[1725367355025,0.002,59259.0,59258.0,0.77688189]
[1725367356830,0.00218188,59259.0,59258.0,0.77688189]
[1725367357134,0.002,59259.0,59258.0,0.77688189]
[1725367357429,0.00218188,59259.0,59258.0,0.77688189]
[1725367357625,0.00218188,59259.0,59256.0,0.3789]
[1725367357626,0.36298188,59259.0,59256.0,0.05038371]
[1725367357928,0.0008,59257.0,59255.0,0.23]
[1725367358134,0.0008,59257.0,59256.0,0.314383]
[1725367358323,0.002,59259.0,59258.0,0.084381]
[1725367358519,0.002,59259.0,59258.0,0.768762]
[1725367358719,0.002,59259.0,59258.0,1.3420786]
[1725367359023,0.00212016,59259.0,59258.0,1.190621]
[1725367359223,0.00218188,59259.0,59258.0,1.190621]
[1725367359427,0.002,59259.0,59258.0,1.190621]
[1725367359938,0.002,59259.0,59258.0,1.275002]
[1725367360230,0.0039,59269.0,59268.0,0.084366]
[1725367360422,0.08436,59273.0,59268.0,0.72551957]
[1725367360627,0.3891,59276.0,59268.0,0.72551957]
[1725367360628,0.474161,59272.0,59271.0,0.23]
[1725367361331,0.474161,59272.0,59271.0,0.09]
[1725367362030,0.00025306,59277.0,59271.0,1.19616]
[1725367362230,0.00025306,59277.0,59276.0,0.084355]
[1725367362528,0.3741,59284.0,59280.0,0.084348]
[1725367362529,0.458444,59284.0,59280.0,0.084348]
[1725367362718,0.458444,59284.0,59281.0,0.09]
[1725367362719,0.084345,59283.0,59281.0,0.09]
[1725367362925,0.05177464,59282.0,59281.0,0.09]
[1725367363540,0.00016234,59282.0,59281.0,0.09]
[1725367363830,0.13612113,59282.0,59281.0,0.09]
[1725367364230,0.13612113,59282.0,59281.0,0.23]
[1725367364532,0.084346,59282.0,59281.0,0.23]
[1725367364827,0.084346,59282.0,59281.0,0.231]
[1725367366129,0.13612164,59282.0,59281.0,0.231]
[1725367366327,0.084346,59282.0,59281.0,0.231]
[1725367366519,0.13612164,59282.0,59281.0,0.231]
[1725367367224,0.13630352,59282.0,59281.0,0.231]
[1725367367426,0.13629092,59282.0,59281.0,0.231]
[1725367367730,0.13612164,59282.0,59281.0,0.231]
[1725367368929,0.13612186,59282.0,59281.0,0.231]
[1725367369127,0.49692186,59282.0,59281.0,0.231]
[1725367369726,0.6417718,59282.0,59281.0,0.001]
[1725367370233,0.88411645,59282.0,59281.0,0.001]
[1725367371033,0.88411645,59282.0,59275.0,0.23]
[1725367371034,0.083355,59276.0,59275.0,0.23]
[1725367371330,0.08433688,59276.0,59275.0,0.23]
[1725367371523,0.084155,59276.0,59275.0,0.23]
[1725367372330,0.0008,59276.0,59275.0,0.23]
[1725367372726,0.0018,59276.0,59275.0,0.232]
[1725367373225,0.0028,59276.0,59275.0,0.233]
[1725367373831,0.0028,59276.0,59275.0,0.317356]
[1725367374030,0.00295875,59276.0,59275.0,0.317356]
[1725367374231,0.0028,59276.0,59275.0,0.317356]
[1725367375632,0.00292183,59276.0,59275.0,0.317356]
[1725367375937,0.0028,59276.0,59275.0,0.317356]
[1725367376837,0.08733141,59276.0,59275.0,0.317356]
[1725367377040,0.087155,59276.0,59275.0,0.317356]
[1725367378036,0.0028,59276.0,59275.0,0.317356]
[1725367379130,0.00292445,59276.0,59275.0,0.317356]
[1725367379339,0.0028,59276.0,59275.0,0.317356]
[1725367379541,0.0028,59276.0,59275.0,0.678156]
[1725367380536,0.00298188,59276.0,59275.0,0.678156]
[1725367380732,0.0028,59276.0,59275.0,0.678156]
[1725367384842,0.0028,59276.0,59275.0,0.538156]
[1725367385037,0.00298188,59276.0,59275.0,0.538156]
[1725367385248,0.087155,59276.0,59275.0,0.087356]
[1725367385449,0.26151,59276.0,59275.0,0.003]
[1725367386554,0.17151,59276.0,59275.0,0.003]
[1725367386743,0.084362,59271.0,59270.0,0.5908]
[1725367387047,0.083162,59271.0,59270.0,0.3608]
[1725367387241,0.083162,59271.0,59270.0,0.5908]
[1725367388342,0.083162,59271.0,59266.0,0.00025306]
[1725367388343,0.0008,59271.0,59266.0,0.00025306]
[1725367388542,0.445968,59267.0,59266.0,0.00025306]
[1725367388739,0.44614988,59267.0,59266.0,0.00025306]
[1725367389145,0.445968,59267.0,59266.0,0.23025306]
[1725367389745,0.445968,59267.0,59266.0,0.23125306]
[1725367391456,0.446968,59267.0,59266.0,0.31562206]
[1725367392047,0.44714988,59267.0,59266.0,0.31562206]
[1725367392352,0.446968,59267.0,59266.0,0.31562206]
[1725367393048,0.44711523,59267.0,59266.0,0.31562206]
[1725367393251,0.446968,59267.0,59266.0,0.23125306]
[1725367395558,0.44709589,59267.0,59266.0,0.23125306]
[1725367395763,0.446968,59267.0,59266.0,0.23125306]
[1725367396346,0.44712276,59267.0,59266.0,0.23125306]
[1725367396551,0.44711803,59267.0,59266.0,0.23125306]
[1725367396752,0.086168,59267.0,59266.0,0.23125306]
[1725367399260,0.086168,59267.0,59266.0,0.31562206]
[1725367403954,0.0862952,59267.0,59266.0,0.31562206]
[1725367404155,0.08634988,59267.0,59266.0,0.31562206]
[1725367404467,0.086168,59267.0,59266.0,0.31562206]
[1725367404764,0.08633686,59267.0,59266.0,0.31562206]
[1725367404954,0.086168,59267.0,59266.0,0.31562206]
[1725367406852,0.08632543,59267.0,59266.0,0.31562206]
[1725367407057,0.08634988,59267.0,59266.0,0.31562206]
[1725367407366,0.086168,59267.0,59266.0,0.31562206]
[1725367407964,0.086168,59267.0,59266.0,0.17562206]
[1725367408268,0.08632788,59267.0,59266.0,0.17562206]
[1725367408458,0.08632727,59267.0,59266.0,0.17562206]
[1725367408767,0.086168,59267.0,59266.0,0.17562206]
[1725367409961,0.0018,59267.0,59266.0,0.17562206]
[1725367410159,0.0039,59277.0,59276.0,0.084355]
[1725367410357,0.00192001,59279.0,59278.0,0.084352]
[1725367410557,0.084341,59286.0,59278.0,0.09]
[1725367410759,0.00192001,59291.0,59290.0,0.084335]
[1725367411069,0.084327,59296.0,59294.0,0.084329]
[1725367411370,0.084327,59296.0,59294.0,0.174329]
[1725367411664,0.084328,59295.0,59294.0,0.09]
[1725367413557,0.098328,59295.0,59294.0,0.09]
[1725367414967,0.098328,59295.0,59292.0,0.084332]